Cogmind - Beta 13 @@@ ROGUE MODE // 2024.05.19 @ 03:38:56 Player: RTW Result: Destroyed by G-34 Mercenary with Small Laser Performance ------------- Evolutions (1) 500 Regions Visited (3) 600 Robots Destroyed (71) 355 Value Destroyed (1260) 1260 Prototype IDs (6) 120 Alien Tech Used (0) 0 Bonus (0) 0 TOTAL SCORE: 2835 Bonus ------- None Cogmind --------- Core Integrity 0/400 Matter 265/300 Energy 265/265 System Corruption 0% Temperature Cool (6) Movement Treading (320) Ox2 Location -9/Materials Parts ------- > --- POWER (2) -------- Improved Ion Engine > --- PROPULSION (2) --- Light Treads Light Treads > --- UTILITY (3) ------ Huge Storage Unit > --- WEAPON (2) ------- Backup Laser I > --- INVENTORY (25) --- Aluminum Leg Aluminum Leg Flight Unit Large Storage Unit High-capacity Storage Unit High-capacity Matter Pod (200) Structural Scanner Improved Terrain Scanner ECM Suite Light Armor Plating Tractor Beam Peak State ------------ > --- POWER ------------ Ion Engine > --- PROPULSION ------- Aluminum Leg Aluminum Leg > --- UTILITY ---------- Improved Heat Sink Huge Storage Unit Weight Redist. System > --- WEAPON ----------- Beam Cannon Datajack > --- INVENTORY -------- Aluminum Leg Flight Unit Large Storage Unit High-capacity Storage Unit High-capacity Matter Pod Structural Scanner Improved Terrain Scanner ECM Suite Tractor Beam Backup Laser I Beam Cannon Beam Cannon Assault Rifle Light Assault Rifle [Rating: 12] Favorites ----------- Power Ion Engine Engine Ion Engine Propulsion Aluminum Leg Treads Light Treads Leg Aluminum Leg Flight Unit Flight Unit Utility Huge Storage Unit Device Improved Heat Sink Storage Huge Storage Unit Weapon Beam Cannon Energy Gun Small Laser Energy Cannon Beam Cannon Ballistic Gun Assault Rifle Special Melee Weapon Datajack Build | -11 -10 -10 -9 ------- Run | Yrd Mat Min Mat Slots Evolved 2 | . . . 2 Power 1 | . . . 1 Propulsion . | . . . . Utility 1 | . . . 1 Weapon . | . . . . Parts Attached 41 | 6 15 5 15 Power 7 | 1 2 1 3 Engine 7 | 1 2 1 3 Core . | . . . . Reactor . | . . . . Propulsion 12 | 2 4 1 5 Treads 2 | . . . 2 Leg 9 | 2 3 1 3 Wheel . | . . . . Hover . | . . . . Flight 1 | . 1 . . Utility 9 | 2 3 3 1 Device 5 | 1 2 1 1 Storage 4 | 1 1 2 . Processor . | . . . . Hackware . | . . . . Protection . | . . . . Artifact . | . . . . Weapon 13 | 1 6 . 6 Energy Gun 2 | . 1 . 1 Energy Cannon 6 | . 5 . 1 Ballistic Gun 3 | 1 . . 2 Ballistic Cannon . | . . . . Launcher . | . . . . Special Weapon . | . . . . Impact Weapon . | . . . . Slashing Weapon . | . . . . Piercing Weapon . | . . . . Special Melee Weapon 2 | . . . 2 Unidentified Prototypes . | . . . . Parts Lost 13 | . . 1 12 Power 4 | . . 1 3 Propulsion 2 | . . . 2 Utility 2 | . . . 2 Weapon 5 | . . . 5 Highest Loss Streak 9 | . . 1 9 To Critical Strikes 1 | . . . 1 Average Slot Usage (%) 95 | . 98 99 76 Engine 13 | . 14 13 10 Leg 26 | . 27 28 18 Device 13 | . 12 14 14 Storage 13 | . 14 14 11 Energy Gun 2 | . 5 . . Energy Cannon 21 | . 17 28 10 Ballistic Gun 2 | . 3 . 5 Naked Turns . | . . . . Heaviest Build 97 | 13 32 92 97 Greatest Support 40 | 20 20 20 40 Greatest Overweight (x) 9 | 3 3 4 9 Average Overweight (x) 1 | . . 2 3 Largest Inventory Capacity 25 | 8 15 25 25 Average Capacity 18 | 7 11 22 25 Most Carried 16 | 1 14 16 15 Average Carried 11 | . 8 14 12 Final Capacity 25 | 8 15 25 25 Final Carried 14 | 1 14 14 11 Class Distribution -------------------- 71% | Scavenger-Mutant 28% | Mutant Dominant Class ---------------- Mutant | -10/Materials Scavenger-Mutant | -10/Mines Scavenger-Mutant | -9/Materials Resources | -11 -10 -10 -9 ----------- Run | Yrd Mat Min Mat Matter Collected 1009 | 323 470 50 166 Remotely . | . . . . Salvage Created 2469 | 128 1408 144 789 Parts 137 | 14 68 15 40 Haulers Intercepted 3 | . 2 . 1 Recyclers Shooed 4 | 1 3 . . Parts Field Recycled . | . . . . Retrieved Matter . | . . . . Parts Self-Destructed . | . . . . Prevented . | . . . . Kills | -11 -10 -10 -9 ------- Run | Yrd Mat Min Mat Combat Hostiles Destroyed 31 | . 15 5 11 Guns 11 | . 5 . 6 Cannons 19 | . 9 5 5 Classes Destroyed 9 | 3 5 . 1 Worker 10 | 1 8 . 1 Builder 7 | . 5 . 2 Tunneler 8 | 4 1 2 1 Hauler 3 | . 2 . 1 Recycler 8 | 1 5 . 2 Watcher 4 | . 3 . 1 Swarmer 6 | . 3 3 . Grunt 22 | . 12 2 8 Sentry 3 | . . . 3 Best Kill Streak 6 | 3 6 3 6 Combat Bots Only 3 | . 3 3 3 Max Kills in Single Turn 2 | 1 1 2 2 Gunslinging . | . . . . Exploded . | . . . . Melee . | . . . . Uniques/NPCs Destroyed . | . . . . Combat | -11 -10 -10 -9 -------- Run | Yrd Mat Min Mat Hostile Shots Fired 210 | . 61 19 130 Missed 59 | . 23 2 34 Damage Taken 1929 | . 402 160 1367 Core 494 | . 70 22 402 Absorbed by Shields . | . . . . Regen/Repaired (Parts) 36 | . 36 . . Core Remaining (%) 81 | 100 . 63 . Volleys Fired 197 | 21 100 16 60 Largest 2 | 1 2 2 2 Hottest 120 | 20 120 120 120 Shots Fired 350 | 21 197 32 100 Gun 177 | 21 105 . 51 Cannon 173 | . 92 32 49 Launcher . | . . . . Special . | . . . . Kinetic 110 | 21 40 . 49 Thermal 240 | . 157 32 51 Explosive . | . . . . Electromagnetic . | . . . . Robot Hit Streak 11 | 4 9 3 11 Robot Miss Streak 8 | 2 5 8 5 Penetration Max . | . . . . Secondary Targets 2 | . 1 . 1 Max Gunslinging Chain 1 | . 1 . 1 Shots Hit Robots 202 | 16 107 11 68 Core Hits 92 | 7 48 8 29 Critical Kills 2 | . 2 . . Critical Parts Destroyed 1 | . 1 . . Critical Strikes 3 | . 3 . . Meltdown 2 | . 2 . . Destroy 1 | . 1 . . Melee Attacks 1 | . . . 1 Impact . | . . . . Slashing . | . . . . Piercing . | . . . . Sneak Attacks . | . . . . Combat Hostiles . | . . . . Follow-up Attacks . | . . . . Damage Inflicted 2848 | 217 1503 207 921 Guns 1312 | 217 713 . 382 Cannons 1536 | . 790 207 539 Explosions . | . . . . Melee . | . . . . Ramming . | . . . . Kinetic 897 | 217 317 . 363 Thermal 1951 | . 1186 207 558 Explosive . | . . . . Electromagnetic . | . . . . Impact . | . . . . Slashing . | . . . . Piercing . | . . . . Highest Corruption . | . . . . Average Corruption . | . . . . Corruption Purged . | . . . . Corruption Blocked . | . . . . Overload Shots . | . . . . Overflow Damage 16 | . 14 . 2 Projectiles 16 | . 14 . 2 Explosions . | . . . . Melee . | . . . . Knockbacks . | . . . . Impact . | . . . . Kinetic . | . . . . Secondary . | . . . . Self-Inflicted Damage . | . . . . Shots . | . . . . Rammed . | . . . . Targets Rammed . | . . . . Kicked . | . . . . Crushed . | . . . . Highest Temperature 446 | . 446 163 87 Average Temperature 100 | . 137 52 27 Received Heat Transfer 927 | . 192 48 687 Effects 9 | . 9 . . Shutdowns 2 | . 2 . . Energy Bleed 1 | . 1 . . Damage (minor) 3 | . 3 . . Damage (major) 3 | . 3 . . Siege Activations . | . . . . Robots Corrupted . | . . . . Combat Hostiles . | . . . . Parts Fried . | . . . . Impact Corruptions . | . . . . Robots Melted 2 | . 2 . . Combat Hostiles 1 | . 1 . . Parts Melted 7 | . 6 1 . Heat Transferred 4521 | . 2856 444 1221 Parts Sabotaged . | . . . . Parts Stolen . | . . . . Parts Stripped . | . . . . Power Chain Reactions . | . . . . Alert | -11 -10 -10 -9 ------- Run | Yrd Mat Min Mat Peak Influence 295 | 30 295 75 170 Initial 75 | . 19 75 . Average 71 | 12 156 24 51 Maximum Alert Level 1 | . 1 . . Low Security (%) 91 | 100 75 100 100 Level 1 8 | . 24 . . Level 2 . | . . . . Level 3 . | . . . . Level 4 . | . . . . Level 5 . | . . . . High Security . | . . . . Max Security . | . . . . Squads Dispatched 6 | . 4 . 2 Investigation 5 | . 4 . 1 Extermination . | . . . . Reinforcement 1 | . . . 1 Assault . | . . . . Garrison . | . . . . Intercept . | . . . . Searches Triggered . | . . . . Construction Impeded . | . . . . Haulers Reinforced . | . . . . Active Scanning Responses . | . . . . Cargo Convoy Interrupts . | . . . . Stealth | -11 -10 -10 -9 --------- Run | Yrd Mat Min Mat Distress Signals 4 | . 2 . 2 Communications Jammed . | . . . . Distress Signals . | . . . . Times Spotted 45 | . 24 5 16 Peak Tracking Total 5 | . 5 3 5 Tactical Retreats . | . . . . Traps | -11 -10 -10 -9 ------- Run | Yrd Mat Min Mat Traps Triggered 3 | . 3 . . Indirectly . | . . . . Trap Hack Attempts . | . . . . Triggered . | . . . . Disarmed 6 | . 6 . . Reprogrammed . | . . . . Reused . | . . . . Traps Extracted . | . . . . Installed . | . . . . Triggered . | . . . . Machines | -11 -10 -10 -9 ---------- Run | Yrd Mat Min Mat Machines Disabled 2 | . 2 . . Max in Single Turn 1 | . 1 . . Machines Repaired . | . . . . Machines Dismantled . | . . . . Machines Sabotaged . | . . . . Overloaded Fab Kills . | . . . . Hacking | -11 -10 -10 -9 --------- Run | Yrd Mat Min Mat Machines Accessed 12 | . 10 1 1 Terminals 9 | . 7 1 1 Fabricators . | . . . . Repair Stations 1 | . 1 . . Recycling Units 2 | . 2 . . Scanalyzers . | . . . . Garrison Access . | . . . . Total Hacks 36 | . 32 1 3 Successful 27 | . 24 1 2 Failed 9 | . 8 . 1 Catastrophic . | . . . . Database Lockouts . | . . . . Manual . | . . . . Terminals 27 | . 23 1 3 Fabricators . | . . . . Repair Stations 5 | . 5 . . Recycling Units 4 | . 4 . . Scanalyzers . | . . . . Garrison Access . | . . . . Terminal Hacks 21 | . 18 1 2 Record 6 | . 6 . . Robot Analysis 1 | . 1 . . Prototype ID Bank 3 | . 2 . 1 Branch Access Points 1 | . 1 . . Terminal Index 1 | . . . 1 Alert Level 1 | . 1 . . Locate Traps 1 | . 1 . . Disarm Traps 2 | . 2 . . Dispatch Records 1 | . . 1 . Maintenance Status 1 | . 1 . . Hauler Manifests 1 | . 1 . . Registered Components 1 | . 1 . . Zone Layout 1 | . 1 . . Fabricator Hacks . | . . . . Repair Station Hacks 3 | . 3 . . Scan Component 1 | . 1 . . Repair 1 | . 1 . . Refit 1 | . 1 . . Recycling Unit Hacks 3 | . 3 . . Process 1 | . 1 . . Report Inventory 2 | . 2 . . Scanalyzer . | . . . . Garrison Access Hacks . | . . . . Unauthorized Hacks . | . . . . Terminals . | . . . . Fabricators . | . . . . Repair Stations . | . . . . Recycling Units . | . . . . Scanalyzers . | . . . . Garrison Access . | . . . . Data Cores Recovered . | . . . . Used . | . . . . Hacking Detections 10 | . 9 . 1 Full Trace Events 8 | . 7 . 1 Feedback Events . | . . . . Feedback Blocked . | . . . . Robot Schematics Acquired . | . . . . Robots Built . | . . . . Authchips . | . . . . Time . | . . . . Total Robot Build Rating . | . . . . Part Schematics Acquired . | . . . . Parts Built . | . . . . Authchips . | . . . . Time . | . . . . Total Part Build Rating . | . . . . Parts Repaired 1 | . 1 . . Time 26 | . 26 . . Parts Recycled . | . . . . Recycled Matter 123 | . 123 . . Retrieved Matter . | . . . . Retrieved Components . | . . . . Parts Scanalyzed . | . . . . Part Schematics Acquired . | . . . . Parts Damaged . | . . . . Bothacking | -11 -10 -10 -9 ------------ Run | Yrd Mat Min Mat Used RIF Installer . | . . . . Robots Hacked 1 | . . . 1 Non-combat . | . . . . Combat 1 | . . . 1 Robot Hacks Applied 1 | . . . 1 parse_system 1 | . . . 1 Relay Couplers Released . | . . . . Fabnet Peak Effective % . | . . . . Robots Rewired . | . . . . Allies Hacked . | . . . . Hacks Repelled . | . . . . Allies | -11 -10 -10 -9 -------- Run | Yrd Mat Min Mat Total Allies . | . . . . Largest Group . | . . . . Highest-Rated Group . | . . . . Highest-Rated Ally . | . . . . Total Orders . | . . . . Ally Attacks . | . . . . Total Damage . | . . . . Kills . | . . . . Allies Corrupted . | . . . . Allies Melted . | . . . . Intel | -11 -10 -10 -9 ------- Run | Yrd Mat Min Mat Robot Analysis Total 1 | . 1 . . Derelict Logs Recovered 2 | . . 2 . Drone Launches . | . . . . Drone Recoveries . | . . . . Exploration | -11 -10 -10 -9 ------------- Run | Yrd Mat Min Mat Turns Passed 4267 | 156 1415 2096 600 Spaces Moved 1523 | 78 691 639 115 Core 13 | 10 . . 3 Treads 3 | . . . 3 Legs 1506 | 68 690 639 109 Wheels . | . . . . Hover . | . . . . Flight 1 | . 1 . . Fastest Speed 50 | 50 120 190 320 Average Speed 236 | 123 153 318 358 Slowest Speed 680 | 200 290 400 680 Overloaded Moves . | . . . . Propulsion Burnouts . | . . . . Robots Hopped . | . . . . Cave-ins Triggered . | . . . . Exploration Rate (%) 52 | 6 89 99 14 Regions Visited 3 Branch Regions 1 Pre-discovered Areas 2 | . . 2 . Known Exits Taken 1 | . 1 . . Unknown Exits Taken 2 | 1 . 1 . Scrap Searched 3 | . . 3 . Spaces Dug . | . . . . Terrain Destroyed . | . . . . Melee . | . . . . Projectile . | . . . . AOE . | . . . . Terrain Rammed . | . . . . Walls Destroyed . | . . . . Machines Disabled . | . . . . Actions | -11 -10 -10 -9 --------- Run | Yrd Mat Min Mat Total 1839 | 116 847 670 206 Wait 33 | 5 22 2 4 Move 1520 | 77 690 638 115 Hop . | . . . . Pick Up 37 | 7 16 5 9 Fast Attach 1 | . 1 . . Attach 19 | 6 2 1 10 Detach 1 | . 1 . . Swap 21 | . 12 4 5 Drop 9 | . 3 4 2 Fire 197 | 21 100 16 60 Melee 1 | . . . 1 Ram . | . . . . Kick . | . . . . Crush . | . . . . Escape Stasis . | . . . . Rewire . | . . . . Trap . | . . . . Miscellaneous . | . . . . Route ------- -11/Scrapyard -10/Materials (discovered 4 exits: *Mat x3 / *Min) -10/Mines (discovered 2 exits: *Mat x2) -9/Materials History --------- Turn | Location | Event 26 | -11/Scrapyard | Discovered new exit (range 14) 157 | -11/Scrapyard | Entered Materials 179 | -10/Materials | Identified exit to Mines 314 | -10/Materials | Build established: Mutant 386 | -10/Materials | Discovered new exit (range 5) 675 | -10/Materials | Discovered new exit (range 7) 787 | -10/Materials | Repaired Beam Cannon? 835 | -10/Materials | Discovered new exit (range 5) 1451 | -10/Materials | Build established: Scavenger-Mutant 1572 | -10/Materials | Entered Mines 1648 | -10/Mines | YI-UF0 nonchalantly dropped a Grenade Launcher on the ground 1734 | -10/Mines | Discovered new exit (range 9) 2192 | -10/Mines | Discovered new exit (range 9) 3668 | -10/Mines | Entered Materials 3668 | -9/Materials | Evolved 2 slots: Power x1, Utility x1 4086 | -9/Materials | Core integrity fell below 50% 4145 | -9/Materials | Lost 9 parts (2p2n2u3w) 4153 | -9/Materials | Core integrity fell below 20% 4268 | -9/Materials | Destroyed by G-34 Mercenary with Small Laser Last Messages --------------- G-34 Mercenary destroyed. Acquired 57 matter. R-06 Scavenger collects Lgt. Treads. R-06 Scavenger collects Aluminum Leg. R-06 Scavenger destroyed. Acquired 29 matter. R-06 Scavenger collects Com. Wheel. Acquired Lgt. Armor Plating. R-06 Scavenger collects Lgt. Treads. W-16 Scout sends out distress signal. R-06 Scavenger collects Sml. Storage Unit. Acquired Lgt. Treads. R-06 Scavenger collects Ion Engine. Acquired Lgt. Treads. R-06 Scavenger collects Sml. Laser. R-06 Scavenger collects Aluminum Leg. G-47 Trooper destroyed. Assault Rifle destroyed. R-06 Scavenger collects Imp. Heat Sink. Lgt. Assault Rifle destroyed. Map ----- +----------------------------------------------------+ | ??????????????????????????????????????########## | | ??????????????????????????????????????# # | | ??????????????????????????????????????# # | | ??????????????????????????????????????# # | | ??????????????????????????????????????# # | | ??????????????????????????????????????# + | | ??????????????????????????????????????# # | | ??????????????????????????????????????# # # | | ??????????????????????????????????????# # # | | ??????????????????????????????????????# # # | | ??????????????????????????????????????########## # | | ?????????????????????????#######????????????#### # | | ????????????????????????? #????????????+ + | | ????????????????????????? #????????????#### # | | ??????????????????????????""" [????????????????# # | | ??????????????????????????""" ??????????????### # | | ???????????????????????????"" ???????????????# | | ??????????????????????????? ???????????????# | | ???????????????????# #+##+################# T | | ???????????????????# !%=*==%!|%===%!%[! | | ???????????????????# ####%########+######## | | ???????????????????????????# #????# =!* #???##### | | ?????????????????????????###%###??# ]! #???????? | | ?????????????????????????#!% #??# #???????? | | ???????????????????#######!%% #??# """ #???????? | | ???????????????????+ =!*@g #??# """ #???????? | | ???????????????????#######%% #??# """ #???????? | | ?????????????????????????#% m #??########???????? | | ?????????????????????????##g ##?????????????????? | | ??????????????????????????#% #??????????????????? | | ??????????????????????????#= #??????????????????? | | ??????????????????????????# r #??????????????????? | | ??????????????????????????# %#??????????????????? | | ?????????????????????????? *??????????????????? | | ?????????????????????????? ?????????????????? | | ?????????????????????????? ?????????????????? | | ?????????????????????????? +????????????????? | | ????????????????????????? " # ???????????????? | | ?????????????????????????"%" #????????????????? | | ????????????????????????? " #????????????????? | | ?????????????????????????# #?????????????????? | | ?????????????????????????? ??????????????????? | | ?????????????????????????????????????????????????? | | ?????????????????????????????????????????????????? | | ?????????????????????????????????????????????????? | | ?????????????????????????????????????????????????? | | ?????????????????????????????????????????????????? | | ?????????????????????????????????????????????????? | | ?????????????????????????????????????????????????? | | ?????????????????????????????????????????????????? | +----------------------------------------------------+ Best States ------------- Heat Dissipation 42 Energy Generation 19 Energy Capacity 430 Matter Stores 300 Matter Capacity 300 Sight Range 16 Terrain Scan Range 16 Terrain Scan Density 10 Additional Mass Support 6 Evasion (%) 55 Recoil Reduction 2 Item Schematics ----------------- None Robot Schematics ------------------ None Fabricated ------------ Nothing Alien Tech Used ----------------- None Achievements -------------- Part-time Mechanic Shopping List Uninvited Guest Challenges ------------ None Game ------ Seed MicrowarpSchematicScrap Manual? 0 Play Time 00:45:19 Cumulative 1.7 hours Start 2024.05.19 @ 02:52:32 End 2024.05.19 @ 03:38:56 Sessions 1 Manual Loads 0 Difficulty Rogue Special Mode None Game No. 2 Rogue 1 Adventurer 1 Explorer 0 Win Type - Total 0 Types 0/0/0/0/0/0/0/0/0 Lore% 1 Gallery% 3 Achievement% 3 Wizard Run 0 Options --------- Layout 0 ASCII 0 Keyboard 0 Movement Mouse Keybinds 0 Fullscreen 2 Font 36/Smallcaps Map View 76x50 Zoom Use 0% Tactical HUD 0 Map Filters NONE Filters NONE Steam 1 RUN: 2b350e0c-555f-4119-b323-7a80d82cc865